fUST/lending_fUST_20250628
["ID","MTS","AMOUNT","RATE_DAILY","PERIOD"]
[368306831,1751106650158,-460.0,0.00021095,2]
[368306832,1751106650168,-2780.0,0.00021095,2]
[368306833,1751106650177,-151.0,0.00021113,4]
[368306834,1751106650187,-2780.0,0.00021123,2]
[368306835,1751106650195,-7911.28250911,0.00021141,4]
[368306836,1751106650205,-2780.0,0.0002115,2]
[368306837,1751106650214,-2780.0,0.00021178,2]
[368306838,1751106650224,-1504.88847929,0.00021187,2]
[368306839,1751106650233,-151.0,0.00021195,2]
[368306840,1751106650242,-25000.0,0.00021195,2]
[368306841,1751106650251,-5000.0,0.00021195,2]
[368306842,1751106650260,-2780.0,0.00021205,2]
[368306843,1751106650270,-2780.0,0.00021232,2]
[368306844,1751106650280,-1185.85451162,0.00021255,2]
[368306845,1751106650290,-2780.0,0.0002126,2]
[368306846,1751106650300,-161.234175,0.00021266,5]
[368306847,1751106650310,-500.0,0.0002128,2]
[368306848,1751106650320,-500.0,0.0002128,2]
[368306849,1751106650329,-260.73459404,0.0002128,2]
[368306850,1751106650341,-500.0,0.0002128,2]
[368306851,1751106650351,-569.85238274,0.0002128,2]
[368306852,1751106650360,-497.23529535,0.0002128,2]
[368306853,1751106650369,-501.21778933,0.0002128,2]
[368306854,1751106650380,-500.0,0.0002128,2]
[368306855,1751106650390,-600.0,0.0002128,2]
[368306856,1751106650402,-501.43460765,0.0002128,2]
[368306857,1751106650412,-501.49161915,0.0002128,2]
[368306858,1751106650421,-2780.0,0.00021287,2]
[368306859,1751106650430,-159.75163439,0.00021288,2]
[368306860,1751106650440,-160.0,0.00021312,2]
[368306861,1751106650452,-183.46980929,0.00021312,2]
[368306862,1751106650462,-500.0,0.00021312,2]
[368306863,1751106650471,-500.0,0.00021312,2]
[368306864,1751106650480,-500.0,0.00021312,2]
[368306865,1751106650490,-502.71747026,0.00021312,2]
[368306866,1751106650499,-501.1311395,0.00021312,2]
[368306867,1751106650510,-533.35382285,0.00021312,2]
[368306868,1751106650519,-500.0,0.00021312,2]
[368306869,1751106650529,-501.21430314,0.00021312,2]
[368306870,1751106650538,-2780.0,0.00021315,2]
[368306871,1751106650547,-2780.0,0.00021342,2]
[368306872,1751106650556,-151.0,0.00021342,4]
[368306873,1751106650567,-7911.28250911,0.00021348,5]
[368306874,1751106650577,-2178.67757898,0.00021364,2]
[368306875,1751106650586,-469.38,0.00021369,2]
[368306876,1751106650595,-460.0,0.00021369,2]
[368306877,1751106650604,-695.48,0.00021369,2]
[368306878,1751106650614,-460.0,0.00021369,2]
[368306879,1751106650624,-460.0,0.00021369,2]
[368306880,1751106650633,-858.67,0.00021369,2]
[368306881,1751106650643,-500.0,0.00021369,16]
[368306882,1751106650652,-1077.62,0.00021369,2]
[368306883,1751106650661,-537.78,0.00021369,2]
[368306884,1751106650671,-644.65,0.00021369,2]
[368306885,1751106650680,-555.2,0.00021369,2]
[368306886,1751106650689,-460.0,0.00021369,2]
[368306887,1751106650699,-1977.11,0.00021369,2]
[368306888,1751106650708,-2228.33,0.00021369,2]
[368306889,1751106650720,-460.0,0.00021369,2]
[368306890,1751106650729,-460.0,0.00021369,2]
[368306891,1751106650738,-652.63,0.00021369,2]
[368306892,1751106650748,-460.0,0.00021369,2]
[368306893,1751106650759,-573.62,0.00021369,2]
[368306894,1751106650768,-1764.57,0.00021369,2]
[368306895,1751106650777,-460.0,0.00021369,2]
[368306896,1751106650787,-539.94,0.00021369,2]
[368306897,1751106650799,-460.0,0.00021369,2]
[368306898,1751106650808,-509.66,0.00021369,2]
[368306899,1751106650818,-2231.09,0.00021369,2]
[368306900,1751106650827,-460.0,0.00021369,2]
[368306901,1751106650836,-845.26,0.00021369,2]
[368306902,1751106650846,-2259.74,0.00021369,2]
[368306903,1751106650855,-460.0,0.00021369,2]
[368306904,1751106650865,-460.0,0.00021369,2]
[368306905,1751106650874,-3202.63,0.00021369,2]
[368306906,1751106650883,-821.41,0.00021369,2]
[368306907,1751106650892,-151.0,0.00021369,2]
[368306908,1751106650901,-460.0,0.00021369,2]
[368306909,1751106650910,-460.0,0.00021369,2]
[368306910,1751106650919,-511.78,0.00021369,2]
[368306911,1751106650929,-460.0,0.00021369,2]
[368306912,1751106650939,-1620.3,0.00021369,2]
[368306913,1751106650948,-460.0,0.00021369,2]
[368306914,1751106650957,-460.0,0.00021369,2]
[368306915,1751106650967,-1969.14,0.00021369,2]
[368306916,1751106650975,-589.27,0.00021369,2]
[368306917,1751106650985,-460.0,0.00021369,2]
[368306918,1751106650994,-1486.95,0.00021369,2]
[368306919,1751106651003,-460.0,0.00021369,2]
[368306920,1751106651013,-460.0,0.00021369,2]
[368306921,1751106651022,-460.0,0.00021369,2]
[368306922,1751106651031,-1282.48,0.00021369,2]
[368306923,1751106651040,-3912.61,0.00021369,2]
[368306924,1751106651050,-480.16,0.00021369,2]
[368306925,1751106651059,-489.39,0.00021369,2]
[368306926,1751106651068,-516.01,0.00021369,2]
[368306927,1751106651078,-514.13,0.00021369,2]
[368306928,1751106651088,-460.0,0.00021369,2]
[368306929,1751106651099,-460.0,0.00021369,2]
[368306930,1751106651112,-1432.27,0.00021369,2]
[368306931,1751106651122,-3305.21,0.00021369,2]
[368306932,1751106651132,-698.46,0.00021369,2]
[368306933,1751106651143,-1210.2,0.00021369,2]
[368306934,1751106651154,-471.34,0.00021369,2]
[368306935,1751106651163,-214.27484,0.00021369,2]
[368306936,1751106651173,-810.23,0.00021369,2]
[368306937,1751106651183,-460.0,0.00021369,2]
[368306938,1751106651193,-2780.0,0.00021369,2]
[368306939,1751106651202,-366.1706175,0.0002137,2]
[368306940,1751106651212,-366.1706175,0.0002137,2]
[368306941,1751106651221,-366.1706175,0.0002137,2]
[368306942,1751106651231,-366.1706175,0.0002137,2]
[368306943,1751106651241,-366.1706175,0.0002137,2]
[368306944,1751106651250,-846.2163424,0.0002137,2]
[368306945,1751106651259,-160.0,0.00021372,4]
[368306946,1751106651269,-2780.0,0.00021397,2]
[368306947,1751106651279,-2802.62538489,0.00021424,2]
[368306948,1751106651288,-160.0,0.0002145,2]
[368306949,1751106651298,-160.0,0.0002145,2]
[368306950,1751106651307,-160.0,0.0002145,2]
[368306951,1751106651316,-160.0,0.0002145,2]
[368306952,1751106651325,-160.0,0.0002145,2]
[368306953,1751106651335,-160.0,0.0002145,2]
[368306954,1751106651344,-538.906069,0.00021478,4]
[368306955,1751106651353,-172.4531322,0.00021488,2]
[368306956,1751106651363,-168.85993162,0.00021492,2]
[368306957,1751106651372,-151.0,0.000215,2]
[368306958,1751106651381,-577.076069,0.000215,2]
[368306959,1751106651391,-151.0,0.00021555,2]
[368306960,1751106651400,-206.65659,0.00021555,2]
[368306961,1751106651409,-206.65659,0.00021555,2]
[368306962,1751106651418,-7911.28250911,0.00021555,5]
[368306963,1751106651427,-159.75163443,0.00021562,2]
[368306964,1751106651436,-159.75163439,0.00021562,2]
[368306965,1751106651446,-159.75163439,0.00021562,2]
[368306966,1751106651455,-500.0,0.00021569,2]
[368306967,1751106651465,-500.0,0.00021569,2]
[368306968,1751106651474,-500.0,0.00021569,2]
[368306969,1751106651484,-500.0,0.00021569,2]
[368306970,1751106651493,-500.0,0.00021569,2]
[368306971,1751106651502,-151.0,0.0002157,5]
[368306972,1751106651511,-587.0,0.00021628,2]
[368306973,1751106651521,-180.0,0.00021628,2]
[368306974,1751106651530,-60109.47098,0.00021642,2]
[368306975,1751106651539,-469.38,0.00021643,2]
[368306976,1751106651548,-460.0,0.00021643,2]
[368306977,1751106651558,-695.48,0.00021643,2]
[368306978,1751106651568,-460.0,0.00021643,2]
[368306979,1751106651578,-460.0,0.00021643,2]
[368306980,1751106651587,-858.67,0.00021643,2]
[368306981,1751106651597,-1077.62,0.00021643,2]
[368306982,1751106651606,-306.82598111,0.00021643,2]
[368306983,1751106651615,-537.78,0.00021643,2]
[368306984,1751106651625,-644.65,0.00021643,2]
[368306985,1751106651635,-555.2,0.00021643,2]
[368306986,1751106651645,-460.0,0.00021643,2]
[368306987,1751106651654,-1977.11,0.00021643,2]
[368306988,1751106651663,-2228.33,0.00021643,2]
[368306989,1751106651778,-460.0,0.00021643,2]
[368306990,1751106651788,-460.0,0.00021643,2]
[368306991,1751106651798,-652.63,0.00021643,2]
[368306992,1751106651808,-460.0,0.00021643,2]
[368306993,1751106651817,-573.62,0.00021643,2]
[368306994,1751106651826,-1764.57,0.00021643,2]
[368306995,1751106651835,-460.0,0.00021643,2]
[368306996,1751106651845,-539.94,0.00021643,2]
[368306997,1751106651854,-460.0,0.00021643,2]
[368306998,1751106651864,-509.66,0.00021643,2]
[368306999,1751106651873,-2231.09,0.00021643,2]
[368307000,1751106651882,-460.0,0.00021643,2]
[368307001,1751106651891,-845.26,0.00021643,2]
[368307002,1751106651901,-2259.74,0.00021643,2]
[368307003,1751106651910,-460.0,0.00021643,2]
[368307004,1751106651920,-460.0,0.00021643,2]
[368307005,1751106651929,-3202.63,0.00021643,2]
[368307006,1751106651938,-821.41,0.00021643,2]
[368307007,1751106651948,-460.0,0.00021643,2]
[368307008,1751106651957,-460.0,0.00021643,2]
[368307009,1751106651966,-511.78,0.00021643,2]
[368307010,1751106651976,-1620.3,0.00021643,2]
[368307011,1751106651985,-460.0,0.00021643,2]
[368307012,1751106651995,-460.0,0.00021643,2]
[368307013,1751106652005,-1969.14,0.00021643,2]
[368307014,1751106652014,-589.27,0.00021643,2]
[368307015,1751106652023,-460.0,0.00021643,2]
[368307016,1751106652033,-1486.95,0.00021643,2]
[368307017,1751106652042,-460.0,0.00021643,2]
[368307018,1751106652051,-460.0,0.00021643,2]
[368307019,1751106652060,-460.0,0.00021643,2]
[368307020,1751106652070,-1282.48,0.00021643,2]
[368307021,1751106652080,-3912.61,0.00021643,2]
[368307022,1751106652089,-480.16,0.00021643,2]
[368307023,1751106652098,-489.39,0.00021643,2]
[368307024,1751106652108,-516.01,0.00021643,2]
[368307025,1751106652117,-514.13,0.00021643,2]
[368307026,1751106652126,-460.0,0.00021643,2]
[368307027,1751106652136,-460.0,0.00021643,2]
[368307028,1751106652146,-1432.27,0.00021643,2]
[368307029,1751106652156,-3305.21,0.00021643,2]
[368307030,1751106652166,-698.46,0.00021643,2]
[368307031,1751106652176,-1210.2,0.00021643,2]
[368307032,1751106652186,-471.34,0.00021643,2]
[368307033,1751106652195,-810.23,0.00021643,2]
[368307034,1751106652205,-279.01896734,0.00021643,2]
[368307035,1751106652214,-3509.91,0.000217,2]
[368307036,1751106652223,-5000.0,0.00021743,2]
[368307037,1751106652232,-7911.28250911,0.00021762,5]
[368307038,1751106652242,-500.0,0.00021774,2]
[368307039,1751106652252,-151.0,0.00021774,2]
[368307040,1751106652262,-268.601075,0.00021774,2]
[368307041,1751106652272,-268.601075,0.00021774,2]
[368307042,1751106652281,-502.89520889,0.00021779,2]
[368307043,1751106652291,-409.30435699,0.0002178,17]
[368307044,1751106652300,-151.0,0.00021799,5]
[368307045,1751106652310,-1000.0,0.00021828,2]
[368307046,1751106652320,-1000.0,0.00021828,2]
[368307047,1751106652329,-193.16917624,0.00021828,2]
[368307048,1751106652339,-1200.0,0.00021828,2]
[368307049,1751106652348,-159.75163439,0.00021836,2]
[368307050,1751106652358,-720.0,0.0002184,2]
[368307051,1751106652367,-501.44840289,0.00021859,2]
[368307052,1751106652375,-1000.0,0.00021859,2]
[368307053,1751106652385,-1000.0,0.00021859,2]
[368307054,1751106652394,-651.78274416,0.00021859,2]
[368307055,1751106652403,-9797.30693905,0.0002188,5]
[368307056,1751106652412,-10000.0,0.000219,15]
[368307057,1751106652421,-213.78848551,0.000219,3]
[368307058,1751106652430,-847.18566335,0.000219,3]
[368307059,1751106652439,-1185.85451162,0.000219,2]
[368307060,1751106652448,-151.0,0.00021917,2]
[368307061,1751106652458,-11608.48577292,0.00021917,2]
[368307062,1751106652467,-151.0,0.00021917,2]
[368307063,1751106652476,-577.076069,0.00021917,2]
[368307064,1751106652485,-1041.22825181,0.00021917,2]
[368307065,1751106652494,-12500.0,0.00021917,2]
[368307066,1751106652504,-469.38,0.00021917,2]
[368307067,1751106652513,-460.0,0.00021917,2]
[368307068,1751106652522,-695.48,0.00021917,2]
[368307069,1751106652531,-247.490472,0.00021917,2]
[368307070,1751106652540,-460.0,0.00021917,2]
[368307071,1751106652549,-247.490472,0.00021917,2]
[368307072,1751106652559,-460.0,0.00021917,2]
[368307073,1751106652568,-858.67,0.00021917,2]
[368307074,1751106652578,-1077.62,0.00021917,2]
[368307075,1751106652587,-537.78,0.00021917,2]
[368307076,1751106652596,-644.65,0.00021917,2]
[368307077,1751106652606,-555.2,0.00021917,2]
[368307078,1751106652615,-460.0,0.00021917,2]
[368307079,1751106652625,-1977.11,0.00021917,2]
[368307080,1751106652635,-2228.33,0.00021917,2]
[368307081,1751106652644,-460.0,0.00021917,2]
[368307082,1751106652654,-460.0,0.00021917,2]
[368307083,1751106652664,-399.029666,0.00021917,2]
[368307084,1751106652674,-652.63,0.00021917,2]
[368307085,1751106652683,-399.029666,0.00021917,2]
[368307086,1751106652693,-460.0,0.00021917,2]
[368307087,1751106652703,-573.62,0.00021917,2]
[368307088,1751106652713,-1764.57,0.00021917,2]
[368307089,1751106652725,-460.0,0.00021917,2]
[368307090,1751106652735,-539.94,0.00021917,2]
[368307091,1751106652745,-460.0,0.00021917,2]
[368307092,1751106652754,-509.66,0.00021917,2]
[368307093,1751106652764,-2231.09,0.00021917,2]
[368307094,1751106652775,-460.0,0.00021917,2]
[368307095,1751106652786,-845.26,0.00021917,2]
[368307096,1751106652801,-2235.07754917,0.00021917,2]
[368307097,1751106652929,-24.66245083,0.00021917,2]
[368307098,1751106652939,-460.0,0.00021917,2]
[368307099,1751106652948,-460.0,0.00021917,2]
[368307100,1751106652958,-3202.63,0.00021917,2]
[368307101,1751106652968,-154.988816,0.00021917,2]
[368307102,1751106652977,-821.41,0.00021917,2]
[368307103,1751106652987,-151.0,0.00021917,2]
[368307104,1751106652997,-460.0,0.00021917,2]
[368307105,1751106653007,-460.0,0.00021917,2]
[368307106,1751106653016,-511.78,0.00021917,2]
[368307107,1751106653025,-155.0,0.00021917,2]
[368307108,1751106653035,-1620.3,0.00021917,2]
[368307109,1751106653045,-460.0,0.00021917,2]
[368307110,1751106653054,-460.0,0.00021917,2]
[368307111,1751106653063,-1969.14,0.00021917,2]
[368307112,1751106653072,-589.27,0.00021917,2]
[368307113,1751106653081,-334.15595049,0.00021917,2]
[368307114,1751106653094,-1486.95,0.00021917,2]
[368307115,1751106653103,-460.0,0.00021917,2]
[368307116,1751106653113,-460.0,0.00021917,2]
[368307117,1751106653122,-460.0,0.00021917,2]
[368307118,1751106653131,-1282.48,0.00021917,2]
[368307119,1751106653140,-3912.61,0.00021917,2]
[368307120,1751106653150,-480.16,0.00021917,2]
[368307121,1751106653159,-489.39,0.00021917,2]
[368307122,1751106653168,-516.01,0.00021917,2]
[368307123,1751106653178,-514.13,0.00021917,2]
[368307124,1751106653187,-460.0,0.00021917,2]
[368307125,1751106653195,-460.0,0.00021917,2]
[368307126,1751106653205,-1432.27,0.00021917,2]
[368307127,1751106653214,-3305.21,0.00021917,2]
[368307128,1751106653223,-698.46,0.00021917,2]
[368307129,1751106653233,-1210.2,0.00021917,2]
[368307130,1751106653243,-471.34,0.00021917,2]
[368307131,1751106653252,-214.27484,0.00021917,2]
[368307132,1751106653262,-810.23,0.00021917,2]
[368307133,1751106653271,-151.0,0.00021918,2]
[368307134,1751106653280,-575.2177202,0.00021918,2]
[368307135,1751106653290,-306.0,0.00021918,2]
[368307136,1751106653299,-177.5104021,0.00021918,2]
[368307137,1751106653308,-240.94687,0.00021918,2]
[368307138,1751106653318,-1150.4354404,0.00021918,2]
[368307139,1751106653327,-153.0,0.00021918,2]
[368307140,1751106653337,-575.2177202,0.00021918,2]
[368307141,1751106653346,-575.2177202,0.00021918,2]
[368307142,1751106653355,-575.2177202,0.00021918,2]
[368307143,1751106653365,-516.3142487,0.00021918,2]
[368307144,1751106653374,-968.174,0.00021928,2]
[368307145,1751106653383,-406.0,0.00021928,2]
[368307146,1751106653393,-421.306,0.00021928,2]
[368307147,1751106653402,-213.731,0.00021936,2]
[368307148,1751106653411,-249.539,0.00021936,2]
[368307149,1751106653420,-248.989,0.00021936,2]
[368307150,1751106653429,-259.047,0.00021936,2]
[368307151,1751106653439,-216.256,0.00021936,2]
[368307152,1751106653448,-7911.28250911,0.00021969,6]
[368307153,1751106653457,-1000.0,0.00021972,2]
[368307154,1751106653467,-840.0,0.00021972,2]
[368307155,1751106653476,-228.21662057,0.00021973,2]
[368307156,1751106653485,-51932.4448255,0.00022,2]
[368307157,1751106653971,-460.0,0.00019178,2]
[368307158,1751106653981,-460.0,0.00019178,2]
[368307159,1751106653990,-460.0,0.00019178,2]
[368307160,1751106654000,-460.0,0.00019178,2]
[368307161,1751106654009,-460.0,0.00019452,2]
[368307162,1751106654019,-460.0,0.00019726,2]
[368307163,1751106654028,-460.0,0.0002,2]
[368307164,1751106654038,-215.33,0.00020273,2]
[368307165,1751106654047,-214.27484,0.00021369,2]
[368307166,1751106654057,-2161.0,0.00021538,2]
[368307167,1751106654066,-214.27484,0.00021917,2]
[368307168,1751106654080,-839923.76128917,0.00022,2]
[368307169,1751106654092,-6062.13151385,0.00022,2]
[368307170,1751106654103,-8954.97748854,0.00022,2]
[368307171,1751106654114,-4442.22736952,0.00022,2]
[368307173,1751106879552,257.345818,0.00013699,2]
[368307177,1751107618929,5000.0,0.000181,2]
[368307178,1751107635076,-300.0,0.00018172,2]
[368307179,1751107635099,-300.0,0.00018172,2]
[368307180,1751107635122,-39.80327448,0.00018173,2]
[368307181,1751107664151,5000.0,0.000181,2]
[368307185,1751107739354,4910.68990291,0.000181,2]
[368307186,1751107739377,89.31009709,0.000181,2]
[368307189,1751107799143,5000.0,0.000181,2]
[368307213,1751107832519,-300.0,0.00018173,2]
[368307214,1751107832528,-300.0,0.00018173,2]
[368307215,1751107832538,-176.47984956,0.00018173,2]
[368307258,1751107838405,-1023.52015044,0.00018173,2]
[368307261,1751107838416,-300.0,0.00018173,2]
[368307263,1751107838425,-38.02366818,0.00018173,2]
[368307265,1751107838437,-221.97633182,0.00018173,2]
[368307267,1751107838447,-361.64366811,0.00018174,2]
[368307268,1751107838458,-1163.84060701,0.00018174,2]
[368307269,1751107838470,-552.36930856,0.00018174,2]
[368307270,1751107838482,-5452.26627782,0.00018174,2]
[368307271,1751107838494,-5835.78435003,0.00018174,2]
[368307272,1751107838567,-11534.09578847,0.00018174,2]
[368307273,1751107838577,-168.05127454,0.00018708,2]
[368307274,1751107838587,-500.0,0.00018806,2]
[368307275,1751107838596,-500.0,0.00018806,2]
[368307276,1751107838606,-500.0,0.00018806,2]
[368307277,1751107838616,-500.0,0.00018806,2]
[368307278,1751107838626,-500.0,0.00018806,2]
[368307279,1751107838635,-500.0,0.00018806,2]
[368307280,1751107838645,-500.0,0.00018806,2]
[368307282,1751107838655,-500.0,0.00018806,2]
[368307283,1751107838665,-500.0,0.00018806,2]
[368307284,1751107838675,-500.0,0.00018806,2]
[368307285,1751107838684,-500.0,0.00018806,2]
[368307286,1751107838694,-500.0,0.00018806,2]
[368307287,1751107838703,-500.0,0.00018806,2]
[368307288,1751107838712,-500.0,0.00018806,2]
[368307289,1751107838722,-500.0,0.00018806,2]
[368307290,1751107838731,-500.0,0.00018806,2]
[368307291,1751107838741,-500.0,0.00018806,2]
[368307292,1751107838751,-500.0,0.00018806,2]
[368307293,1751107838761,-500.0,0.00018806,2]
[368307294,1751107838771,-569.2489035,0.00018806,2]
[368307295,1751107838783,-500.0,0.00018806,2]
[368307296,1751107838794,-500.0,0.00018806,2]
[368307297,1751107838804,-500.0,0.00018806,2]
[368307298,1751107838813,-500.0,0.00018806,2]
[368307299,1751107838822,-500.0,0.00018806,2]
[368307300,1751107838832,-500.0,0.00018806,2]
[368307301,1751107838843,-500.0,0.00018806,2]
[368307302,1751107838854,-500.0,0.00018806,2]
[368307303,1751107838864,-500.0,0.00018806,2]
[368307304,1751107838874,-500.0,0.00018806,2]
[368307305,1751107838884,-18708.04429272,0.00018808,2]
[368307306,1751107838894,-270.27916288,0.000189,2]
[368307307,1751107838903,-1032.07634946,0.00019,2]
[368307308,1751107838913,-1017.61085892,0.00019078,2]
[368307309,1751107838923,-530.28,0.00019168,3]
[368307310,1751107838932,-500.0,0.00019173,2]
[368307311,1751107838942,-500.0,0.00019173,2]
[368307312,1751107838951,-290.3134,0.00019173,2]
[368307313,1751107838961,-500.0,0.00019173,2]
[368307314,1751107838970,-247.5693012,0.00019177,2]
[368307315,1751107838980,-500.0,0.00019177,2]
[368307316,1751107838989,-460.0,0.00019178,2]
[368307317,1751107839002,-460.0,0.00019178,2]
[368307318,1751107839012,-460.0,0.00019178,2]
[368307319,1751107839022,-1000.0,0.00019178,2]
[368307320,1751107839031,-460.0,0.00019178,2]
[368307321,1751107839040,-459.14140444,0.00019178,2]
[368307322,1751107839050,-461.499763,0.00019178,2]
[368307323,1751107839060,-460.0,0.00019178,2]
[368307324,1751107839069,-460.0,0.00019178,2]
[368307325,1751107839079,-460.0,0.00019178,2]
[368307326,1751107839088,-460.0,0.00019178,2]
[368307327,1751107839098,-460.0,0.00019178,2]
[368307328,1751107839107,-460.0,0.00019178,2]
[368307329,1751107839117,-460.0,0.00019178,2]
[368307330,1751107839126,-460.0,0.00019178,2]
[368307331,1751107839136,-460.0,0.00019178,2]
[368307332,1751107839146,-460.0,0.00019178,2]
[368307333,1751107839155,-460.0,0.00019178,2]
[368307334,1751107839164,-460.0,0.00019178,2]
[368307335,1751107839174,-165.82536997,0.00019178,2]
[368307336,1751107839183,-460.0,0.00019178,2]
[368307337,1751107839192,-460.0,0.00019178,2]
[368307338,1751107839202,-460.0,0.00019178,2]
[368307339,1751107839211,-460.0,0.00019178,2]
[368307340,1751107839220,-460.0,0.00019178,2]
[368307341,1751107839230,-460.0,0.00019178,2]
[368307342,1751107839240,-460.0,0.00019178,2]
[368307343,1751107839249,-460.0,0.00019178,2]
[368307344,1751107839259,-460.0,0.00019178,2]
[368307345,1751107839268,-460.0,0.00019178,2]
[368307346,1751107839278,-460.0,0.00019178,2]
[368307347,1751107839287,-445.0167271,0.00019178,2]
[368307348,1751107839297,-460.0,0.00019178,2]
[368307349,1751107839306,-460.0,0.00019178,2]
[368307350,1751107839315,-460.0,0.00019178,2]
[368307351,1751107839324,-460.0,0.00019178,2]
[368307352,1751107839334,-460.0,0.00019178,2]
[368307353,1751107839343,-465.82903528,0.00019178,2]
[368307354,1751107839353,-454.75184566,0.00019178,2]
[368307355,1751107839363,-460.0,0.00019178,2]
[368307356,1751107839372,-460.0,0.00019178,2]
[368307357,1751107839382,-545.10835801,0.00019178,2]
[368307358,1751107839392,-463.60919068,0.00019178,2]
[368307359,1751107839402,-461.06588722,0.00019178,2]
[368307360,1751107839412,-460.0,0.00019178,2]
[368307361,1751107839421,-601.63883088,0.00019178,2]
[368307362,1751107839431,-249.99007715,0.00019178,2]
[368307363,1751107839440,-464.23372034,0.00019178,2]
[368307364,1751107839452,-460.0,0.00019178,2]
[368307365,1751107839462,-460.0,0.00019178,2]
[368307366,1751107839471,-460.0,0.00019178,2]
[368307367,1751107839481,-460.0,0.00019178,2]
[368307368,1751107839490,-460.0,0.00019178,2]
[368307369,1751107839499,-462.92000689,0.00019178,2]
[368307370,1751107839509,-464.86960517,0.00019178,2]
[368307371,1751107839518,-460.0,0.00019178,2]
[368307372,1751107839527,-460.0,0.00019178,2]
[368307373,1751107839537,-460.0,0.00019178,2]
[368307374,1751107839547,-460.0,0.00019178,2]
[368307375,1751107839557,-460.0,0.00019178,2]
[368307376,1751107839566,-460.0,0.00019178,2]
[368307377,1751107839576,-460.0,0.00019178,2]
[368307378,1751107839586,-460.0,0.00019178,2]
[368307379,1751107839595,-460.0,0.00019178,2]
[368307380,1751107839607,-460.0,0.00019178,2]
[368307381,1751107839617,-460.0,0.00019178,2]
[368307382,1751107839626,-424.97810743,0.00019178,2]
[368307383,1751107839635,-460.0,0.00019178,2]
[368307384,1751107839645,-460.0,0.00019178,2]
[368307385,1751107839655,-460.0,0.00019178,2]
[368307386,1751107839664,-195.69929119,0.00019178,2]
[368307387,1751107839674,-460.0,0.00019178,2]
[368307388,1751107839683,-460.0,0.00019178,2]
[368307389,1751107839693,-460.0,0.00019178,2]
[368307390,1751107839703,-460.0,0.00019178,2]
[368307391,1751107839712,-460.92049086,0.00019178,2]
[368307392,1751107839722,-460.0,0.00019178,2]
[368307393,1751107839732,-461.2182744,0.00019178,2]
[368307394,1751107839741,-460.0,0.00019178,2]
[368307395,1751107839751,-460.0,0.00019178,2]
[368307396,1751107839761,-438.11656417,0.00019178,2]
[368307397,1751107839771,-460.0,0.00019178,2]
[368307398,1751107839783,-460.0,0.00019178,2]
[368307399,1751107839793,-185.16,0.00019178,2]
[368307400,1751107839803,-460.0,0.00019178,2]
[368307401,1751107839975,-460.0,0.00019178,2]
[368307402,1751107839988,-460.0,0.00019178,2]
[368307403,1751107839998,-460.0,0.00019178,2]
[368307404,1751107840008,-460.0,0.00019178,2]
[368307405,1751107840017,-430.0,0.00019178,2]
[368307406,1751107840027,-460.0,0.00019178,2]
[368307407,1751107840036,-460.99015811,0.00019178,2]
[368307408,1751107840046,-460.0,0.00019178,2]
[368307409,1751107840055,-460.0,0.00019178,2]
[368307410,1751107840065,-460.0,0.00019178,2]